fUST/lending_fUST_20240907
["ID","MTS","AMOUNT","RATE_DAILY","PERIOD"]
[337500340,1725719453893,-500.0,0.00047123,120]
[337500341,1725719453903,-500.0,0.00047123,120]
[337500342,1725719453914,-500.0,0.00047123,120]
[337500343,1725719453924,-500.0,0.00047123,120]
[337500344,1725719453934,-500.0,0.00047123,120]
[337500345,1725719453945,-1376.72,0.00047123,120]
[337500346,1725719453956,-500.0,0.00047123,30]
[337500347,1725719453965,-500.0,0.00047123,120]
[337500348,1725719453975,-500.0,0.00047123,120]
[337500349,1725719453984,-500.0,0.00047123,120]
[337500350,1725719453994,-500.0,0.00047123,120]
[337500351,1725719454004,-500.0,0.00047123,120]
[337500352,1725719454013,-500.0,0.00047123,120]
[337500353,1725719454023,-946.38,0.00047123,120]
[337500354,1725719454032,-500.0,0.00047123,120]
[337500355,1725719454042,-500.0,0.00047123,120]
[337500356,1725719454052,-225.66886318,0.00047178,60]
[337500357,1725719454062,-221.02556621,0.00047205,60]
[337500358,1725719454074,-500.0,0.0004726,45]
[337500359,1725719454085,-225.66886318,0.0004737,60]
[337500360,1725719454095,-500.0,0.00047397,120]
[337500361,1725719454104,-503.56816689,0.00047397,60]
[337500362,1725719454117,-500.0,0.00047397,120]
[337500363,1725719454128,-501.63986437,0.00047397,120]
[337500364,1725719454137,-500.0,0.00047397,120]
[337500365,1725719454148,-530.65,0.00047397,120]
[337500366,1725719454157,-494.08789166,0.00047397,120]
[337500367,1725719454167,-563.6,0.00047397,120]
[337500368,1725719454178,-500.0,0.00047397,120]
[337500369,1725719454189,-500.0,0.00047397,120]
[337500370,1725719454201,-500.0,0.00047397,120]
[337500371,1725719454212,-500.0,0.00047397,120]
[337500372,1725719454223,-500.0,0.00047397,120]
[337500373,1725719454233,-500.0,0.00047397,120]
[337500374,1725719454243,-500.0,0.00047397,120]
[337500375,1725719454254,-500.0,0.00047397,120]
[337500376,1725719454265,-500.0,0.00047397,120]
[337500377,1725719454274,-500.0,0.00047397,120]
[337500378,1725719454284,-530.74,0.00047397,120]
[337500379,1725719454293,-500.0,0.00047397,120]
[337500380,1725719454303,-320.816844,0.00047397,120]
[337500381,1725719454313,-500.0,0.00047397,120]
[337500382,1725719454323,-500.0,0.00047397,120]
[337500383,1725719454333,-507.11953329,0.00047397,120]
[337500384,1725719454343,-500.0,0.00047397,120]
[337500385,1725719454354,-500.0,0.00047397,120]
[337500386,1725719454363,-393.84180013,0.00047397,120]
[337500387,1725719454372,-500.0,0.00047397,120]
[337500388,1725719454383,-500.0,0.00047397,120]
[337500389,1725719454393,-500.0,0.00047397,120]
[337500390,1725719454402,-507.11887107,0.00047397,120]
[337500391,1725719454413,-500.0,0.00047397,120]
[337500392,1725719454422,-500.0,0.00047397,120]
[337500393,1725719454431,-500.0,0.00047397,7]
[337500394,1725719454442,-500.0,0.00047397,120]
[337500395,1725719454452,-1157.96,0.00047397,120]
[337500396,1725719454463,-500.0,0.00047397,120]
[337500397,1725719454474,-500.0,0.00047397,120]
[337500398,1725719454484,-500.0,0.00047397,120]
[337500399,1725719454494,-500.0,0.00047397,120]
[337500400,1725719454504,-500.0,0.00047397,120]
[337500401,1725719454513,-3691.13,0.00047397,120]
[337500402,1725719454523,-500.0,0.00047397,120]
[337500403,1725719454533,-500.0,0.00047397,120]
[337500404,1725719454542,-500.0,0.00047397,120]
[337500405,1725719454552,-500.0,0.00047397,120]
[337500406,1725719454563,-500.0,0.00047397,120]
[337500407,1725719454573,-500.0,0.00047397,120]
[337500408,1725719454583,-500.0,0.00047397,120]
[337500409,1725719454596,-500.0,0.00047397,120]
[337500410,1725719454611,-500.0,0.00047397,120]
[337500411,1725719454626,-500.0,0.00047397,120]
[337500412,1725719454641,-500.0,0.00047397,120]
[337500413,1725719454655,-500.0,0.00047397,120]
[337500414,1725719454670,-4327.5,0.00047397,120]
[337500415,1725719454685,-500.0,0.00047397,2]
[337500416,1725719454699,-500.0,0.00047397,14]
[337500417,1725719454713,-17544.47,0.00047397,120]
[337500418,1725719454729,-500.0,0.00047397,7]
[337500419,1725719454745,-1303.57,0.00047397,120]
[337500420,1725719454759,-500.0,0.00047397,120]
[337500421,1725719454772,-384.33426486,0.00047397,120]
[337500422,1725719454785,-500.0,0.00047397,120]
[337500423,1725719454802,-356.1208645,0.00047397,120]
[337500424,1725719454815,-500.0,0.00047397,120]
[337500425,1725719454829,-500.0,0.00047397,120]
[337500426,1725719454841,-500.0,0.00047397,120]
[337500427,1725719454854,-500.0,0.00047397,120]
[337500428,1725719454867,-500.0,0.00047397,120]
[337500429,1725719454879,-500.0,0.00047397,120]
[337500430,1725719454894,-693.61,0.00047397,120]
[337500431,1725719454908,-500.0,0.00047397,120]
[337500432,1725719454924,-212.86330204,0.00047397,120]
[337500433,1725719454937,-500.0,0.00047397,120]
[337500434,1725719454948,-500.0,0.00047397,120]
[337500435,1725719454960,-500.0,0.00047397,120]
[337500436,1725719454973,-500.0,0.00047397,120]
[337500437,1725719454986,-500.0,0.00047397,120]
[337500438,1725719455000,-500.0,0.00047397,120]
[337500439,1725719455014,-500.0,0.00047397,120]
[337500440,1725719455028,-500.0,0.00047397,120]
[337500441,1725719455042,-500.0,0.00047397,120]
[337500442,1725719455056,-500.0,0.00047397,120]
[337500443,1725719455070,-500.0,0.00047397,120]
[337500444,1725719455082,-500.0,0.00047397,120]
[337500445,1725719455094,-500.0,0.00047397,120]
[337500446,1725719455105,-500.0,0.00047397,120]
[337500447,1725719455118,-500.0,0.00047397,120]
[337500448,1725719455131,-500.0,0.00047397,120]
[337500449,1725719455143,-500.0,0.00047397,120]
[337500450,1725719455154,-500.0,0.00047397,120]
[337500451,1725719455166,-500.0,0.00047397,120]
[337500452,1725719455178,-500.0,0.00047397,120]
[337500453,1725719455191,-500.0,0.00047397,120]
[337500454,1725719455203,-500.0,0.00047397,120]
[337500455,1725719455214,-500.0,0.00047397,120]
[337500456,1725719455226,-500.0,0.00047397,120]
[337500457,1725719455240,-500.0,0.00047397,120]
[337500458,1725719455253,-500.0,0.00047397,120]
[337500459,1725719455267,-500.0,0.00047397,120]
[337500460,1725719455279,-500.0,0.00047397,120]
[337500461,1725719455291,-500.0,0.00047397,120]
[337500462,1725719455303,-332.89214399,0.00047397,120]
[337500463,1725719455316,-500.0,0.00047397,120]
[337500464,1725719455329,-500.0,0.00047397,120]
[337500465,1725719455342,-500.0,0.00047397,120]
[337500466,1725719455353,-1376.72,0.00047397,120]
[337500467,1725719455366,-500.0,0.00047397,30]
[337500468,1725719455378,-500.0,0.00047397,120]
[337500469,1725719455391,-500.0,0.00047397,120]
[337500470,1725719455403,-500.0,0.00047397,120]
[337500471,1725719455414,-500.0,0.00047397,120]
[337500472,1725719455426,-500.0,0.00047397,120]
[337500473,1725719455439,-381.7975093,0.00047397,120]
[337500474,1725719455451,-946.38,0.00047397,120]
[337500475,1725719455463,-500.0,0.00047397,120]
[337500476,1725719455474,-500.0,0.00047397,120]
[337500477,1725719455486,-221.02556621,0.00047397,60]
[337500478,1725719455497,-174.13312109,0.000475,120]
[337500479,1725719455511,-225.66886318,0.00047562,60]
[337500480,1725719455522,-221.02556621,0.00047589,60]
[337500481,1725719455533,-221.02556615,0.00047589,60]
[337500482,1725719455548,-50000.0,0.000476,14]
[337500483,1725719455561,-321.0,0.00047671,30]
[337500484,1725719455574,-500.0,0.00047671,120]
[337500485,1725719455584,-500.0,0.00047671,120]
[337500486,1725719455593,-563.6,0.00047671,120]
[337500487,1725719455603,-500.0,0.00047671,120]
[337500488,1725719455612,-500.0,0.00047671,120]
[337500489,1725719455622,-500.0,0.00047671,120]
[337500490,1725719455632,-500.0,0.00047671,120]
[337500491,1725719455647,-509.41839177,0.00047671,120]
[337500492,1725719455656,-500.0,0.00047671,120]
[337500493,1725719455666,-500.0,0.00047671,120]
[337500494,1725719455675,-500.0,0.00047671,120]
[337500495,1725719455686,-500.0,0.00047671,120]
[337500496,1725719455697,-500.0,0.00047671,120]
[337500497,1725719455706,-530.74,0.00047671,120]
[337500498,1725719455718,-500.0,0.00047671,120]
[337500499,1725719455728,-500.0,0.00047671,120]
[337500500,1725719455737,-580.50883575,0.00047671,120]
[337500501,1725719455747,-500.0,0.00047671,120]
[337500502,1725719455757,-500.0,0.00047671,120]
[337500503,1725719455766,-500.0,0.00047671,120]
[337500504,1725719455776,-508.04102457,0.00047671,120]
[337500505,1725719455786,-500.0,0.00047671,120]
[337500506,1725719455796,-473.4107268,0.00047671,120]
[337500507,1725719455807,-500.0,0.00047671,120]
[337500508,1725719455817,-500.0,0.00047671,7]
[337500509,1725719455993,-500.0,0.00047671,120]
[337500510,1725719456007,-1157.96,0.00047671,120]
[337500511,1725719456017,-500.0,0.00047671,120]
[337500512,1725719456027,-500.0,0.00047671,120]
[337500513,1725719456037,-500.0,0.00047671,120]
[337500514,1725719456047,-500.0,0.00047671,120]
[337500515,1725719456057,-500.0,0.00047671,120]
[337500516,1725719456067,-3691.13,0.00047671,120]
[337500517,1725719456078,-500.0,0.00047671,120]
[337500518,1725719456090,-500.0,0.00047671,120]
[337500519,1725719456100,-500.0,0.00047671,120]
[337500520,1725719456112,-500.0,0.00047671,120]
[337500521,1725719456121,-500.0,0.00047671,120]
[337500522,1725719456131,-507.80454929,0.00047671,120]
[337500523,1725719456141,-514.74931012,0.00047671,120]
[337500524,1725719456151,-500.0,0.00047671,120]
[337500525,1725719456160,-500.0,0.00047671,120]
[337500526,1725719456170,-509.95421612,0.00047671,120]
[337500527,1725719456180,-500.0,0.00047671,120]
[337500528,1725719456190,-500.0,0.00047671,120]
[337500529,1725719456200,-500.0,0.00047671,2]
[337500530,1725719456210,-4327.5,0.00047671,120]
[337500531,1725719456220,-500.0,0.00047671,14]
[337500532,1725719456230,-17544.47,0.00047671,120]
[337500533,1725719456240,-500.0,0.00047671,7]
[337500534,1725719456250,-1303.57,0.00047671,120]
[337500535,1725719456260,-500.0,0.00047671,120]
[337500536,1725719456269,-500.0,0.00047671,120]
[337500537,1725719456279,-500.0,0.00047671,120]
[337500538,1725719456289,-464.38898435,0.00047671,120]
[337500539,1725719456298,-500.0,0.00047671,120]
[337500540,1725719456308,-500.0,0.00047671,120]
[337500541,1725719456318,-500.0,0.00047671,120]
[337500542,1725719456327,-500.0,0.00047671,120]
[337500543,1725719456338,-693.61,0.00047671,120]
[337500544,1725719456348,-500.0,0.00047671,120]
[337500545,1725719456357,-500.0,0.00047671,120]
[337500546,1725719456367,-500.0,0.00047671,120]
[337500547,1725719456376,-500.0,0.00047671,120]
[337500548,1725719456386,-500.0,0.00047671,120]
[337500549,1725719456397,-334.70144095,0.00047671,120]
[337500550,1725719456406,-500.0,0.00047671,120]
[337500551,1725719456416,-500.0,0.00047671,120]
[337500552,1725719456426,-500.0,0.00047671,120]
[337500553,1725719456437,-500.0,0.00047671,120]
[337500554,1725719456447,-500.0,0.00047671,120]
[337500555,1725719456457,-500.0,0.00047671,120]
[337500556,1725719456467,-540.03850493,0.00047671,120]
[337500557,1725719456476,-509.49244446,0.00047671,120]
[337500558,1725719456486,-500.0,0.00047671,120]
[337500559,1725719456495,-500.0,0.00047671,120]
[337500560,1725719456505,-618.4929679,0.00047671,120]
[337500561,1725719456515,-500.0,0.00047671,120]
[337500562,1725719456525,-500.0,0.00047671,120]
[337500563,1725719456535,-500.0,0.00047671,120]
[337500564,1725719456544,-500.0,0.00047671,120]
[337500565,1725719456554,-316.95292911,0.00047671,120]
[337500566,1725719456563,-500.0,0.00047671,120]
[337500567,1725719456572,-400.95746711,0.00047671,120]
[337500568,1725719456583,-500.0,0.00047671,120]
[337500569,1725719456594,-508.38486557,0.00047671,120]
[337500570,1725719456604,-500.0,0.00047671,120]
[337500571,1725719456613,-500.0,0.00047671,120]
[337500572,1725719456623,-500.0,0.00047671,120]
[337500573,1725719456634,-500.0,0.00047671,120]
[337500574,1725719456648,-500.0,0.00047671,120]
[337500575,1725719456658,-500.0,0.00047671,120]
[337500576,1725719456668,-1376.72,0.00047671,120]
[337500577,1725719456678,-500.0,0.00047671,30]
[337500578,1725719456688,-500.0,0.00047671,120]
[337500579,1725719456697,-500.0,0.00047671,120]
[337500580,1725719456706,-500.0,0.00047671,120]
[337500581,1725719456717,-500.0,0.00047671,120]
[337500582,1725719456727,-500.0,0.00047671,120]
[337500583,1725719456737,-946.38,0.00047671,120]
[337500584,1725719456748,-500.0,0.00047671,120]
[337500585,1725719456759,-225.66886318,0.00047753,60]
[337500586,1725719456768,-221.02556621,0.00047781,60]
[337500587,1725719456780,-10000.0,0.000479,30]
[337500588,1725719456791,-500.0,0.00047945,120]
[337500589,1725719456802,-500.0,0.00047945,120]
[337500590,1725719456813,-563.6,0.00047945,120]
[337500591,1725719456823,-511.89466195,0.00047945,120]
[337500592,1725719456835,-500.0,0.00047945,120]
[337500593,1725719456845,-571.40771304,0.00047945,120]
[337500594,1725719456854,-500.0,0.00047945,120]
[337500595,1725719456864,-500.0,0.00047945,120]
[337500596,1725719456873,-500.0,0.00047945,120]
[337500597,1725719456882,-500.0,0.00047945,120]
[337500598,1725719456892,-500.0,0.00047945,120]
[337500599,1725719456901,-500.0,0.00047945,120]
[337500600,1725719456911,-530.74,0.00047945,120]
[337500601,1725719456922,-500.0,0.00047945,120]
[337500602,1725719456933,-500.0,0.00047945,120]
[337500603,1725719456944,-576.38934185,0.00047945,120]
[337500604,1725719456954,-214.65663084,0.00047945,120]
[337500605,1725719456963,-500.0,0.00047945,120]
[337500606,1725719456974,-505.1523939,0.00047945,120]
[337500607,1725719456986,-500.0,0.00047945,120]
[337500608,1725719456997,-500.0,0.00047945,7]
[337500609,1725719457008,-509.28727412,0.00047945,120]
[337500610,1725719457020,-1157.96,0.00047945,120]
[337500611,1725719457031,-500.0,0.00047945,120]
[337500612,1725719457041,-506.01984582,0.00047945,120]
[337500613,1725719457051,-500.0,0.00047945,120]
[337500614,1725719457062,-500.0,0.00047945,120]
[337500615,1725719457072,-500.0,0.00047945,120]
[337500616,1725719457082,-3691.13,0.00047945,120]
[337500617,1725719457093,-308.01023078,0.00047945,120]
[337500618,1725719457106,-500.0,0.00047945,120]
[337500619,1725719457116,-500.0,0.00047945,120]
[337500620,1725719457125,-500.0,0.00047945,120]
[337500621,1725719457134,-500.0,0.00047945,120]
[337500622,1725719457145,-500.0,0.00047945,120]
[337500623,1725719457155,-500.0,0.00047945,120]
[337500624,1725719457165,-246.73184932,0.00047945,120]
[337500625,1725719457174,-500.0,0.00047945,120]
[337500626,1725719457183,-500.0,0.00047945,2]
[337500627,1725719457192,-4327.5,0.00047945,120]
[337500628,1725719457202,-500.0,0.00047945,14]
[337500629,1725719457211,-17544.47,0.00047945,120]
[337500630,1725719457221,-500.0,0.00047945,7]
[337500631,1725719457232,-1303.57,0.00047945,120]
[337500632,1725719457241,-500.0,0.00047945,120]
[337500633,1725719457251,-500.0,0.00047945,120]
[337500634,1725719457261,-500.0,0.00047945,120]
[337500635,1725719457270,-500.0,0.00047945,120]
[337500636,1725719457279,-500.0,0.00047945,120]
[337500637,1725719457289,-500.0,0.00047945,120]
[337500638,1725719457298,-693.61,0.00047945,120]
[337500639,1725719457308,-500.0,0.00047945,120]
[337500640,1725719457317,-500.0,0.00047945,120]
[337500641,1725719457327,-507.5298933,0.00047945,120]
[337500642,1725719457337,-500.0,0.00047945,120]
[337500643,1725719457354,-500.0,0.00047945,120]
[337500644,1725719457363,-500.0,0.00047945,120]
[337500645,1725719457372,-507.89374007,0.00047945,120]
[337500646,1725719457381,-500.0,0.00047945,120]
[337500647,1725719457392,-234.05,0.00047945,120]
[337500648,1725719457402,-500.0,0.00047945,120]
[337500649,1725719457412,-500.0,0.00047945,120]
[337500650,1725719457422,-276.31582919,0.00047945,120]
[337500651,1725719457431,-500.0,0.00047945,120]
[337500652,1725719457441,-500.0,0.00047945,120]
[337500653,1725719457451,-500.0,0.00047945,120]
[337500654,1725719457462,-500.0,0.00047945,120]
[337500655,1725719457471,-500.0,0.00047945,120]
[337500656,1725719457481,-500.0,0.00047945,120]
[337500657,1725719457491,-648.8227816,0.00047945,120]
[337500658,1725719457500,-500.0,0.00047945,120]
[337500659,1725719457510,-500.0,0.00047945,48]
[337500660,1725719457523,-206.26785449,0.00047945,120]
[337500661,1725719457534,-500.0,0.00047945,120]
[337500662,1725719457545,-500.0,0.00047945,120]
[337500663,1725719457555,-500.0,0.00047945,120]
[337500664,1725719457567,-1376.72,0.00047945,120]
[337500665,1725719457576,-500.0,0.00047945,30]
[337500666,1725719457585,-500.0,0.00047945,120]
[337500667,1725719457600,-500.0,0.00047945,120]
[337500668,1725719457609,-510.27957712,0.00047945,120]
[337500669,1725719457619,-500.0,0.00047945,120]
[337500670,1725719457628,-500.0,0.00047945,120]
[337500671,1725719457638,-946.38,0.00047945,120]
[337500672,1725719457652,-500.0,0.00047945,120]
[337500673,1725719457662,-225.66886318,0.00047945,60]
[337500674,1725719457671,-221.02556621,0.00047973,60]
[337500675,1725719457683,-150.0,0.00048,2]
[337500676,1725719457692,-6093.25677235,0.00048,2]
[337500677,1725719457701,-3182.35805064,0.00048,7]
[337500678,1725719457711,-225.66886318,0.00048137,60]
[337500679,1725719457720,-152.0,0.00048176,60]
[337500680,1725719457731,-523.0,0.00048181,2]
[337500681,1725719457740,-150.0,0.00048181,2]
[337500682,1725719457749,-221.02556621,0.00048192,60]
[337500683,1725719457760,-427.376,0.00048217,30]
[337500684,1725719457770,-3275.778,0.00048217,30]
[337500685,1725719457780,-500.0,0.00048219,120]
[337500686,1725719457789,-500.0,0.00048219,120]
[337500687,1725719457798,-563.6,0.00048219,120]
[337500688,1725719457807,-500.0,0.00048219,120]
[337500689,1725719457817,-500.0,0.00048219,120]
[337500690,1725719457826,-500.0,0.00048219,120]
[337500691,1725719457836,-500.0,0.00048219,120]
[337500692,1725719457849,-500.0,0.00048219,120]
[337500693,1725719457859,-500.0,0.00048219,120]
[337500694,1725719457868,-500.0,0.00048219,120]
[337500695,1725719457877,-530.74,0.00048219,120]
[337500696,1725719457886,-500.0,0.00048219,120]
[337500697,1725719457895,-500.0,0.00048219,120]
[337500698,1725719457904,-500.0,0.00048219,120]
[337500699,1725719457914,-500.0,0.00048219,120]
[337500700,1725719457924,-500.0,0.00048219,7]
[337500701,1725719457933,-1157.96,0.00048219,120]
[337500702,1725719457943,-500.0,0.00048219,120]
[337500703,1725719457952,-500.0,0.00048219,120]
[337500704,1725719457963,-500.0,0.00048219,120]
[337500705,1725719457973,-3691.13,0.00048219,120]
[337500706,1725719457982,-500.0,0.00048219,120]
[337500707,1725719457991,-500.0,0.00048219,120]
[337500708,1725719458001,-500.0,0.00048219,120]
[337500709,1725719458010,-500.0,0.00048219,120]
[337500710,1725719458019,-500.0,0.00048219,120]
[337500711,1725719458031,-500.0,0.00048219,120]
[337500712,1725719458041,-500.0,0.00048219,2]
[337500713,1725719458050,-4327.5,0.00048219,120]
[337500714,1725719458060,-269.39765354,0.00048219,14]
[337500715,1725719458069,-17544.47,0.00048219,120]
[337500716,1725719458079,-508.74969885,0.00048219,7]
[337500717,1725719458092,-1303.57,0.00048219,120]
[337500718,1725719458102,-500.0,0.00048219,120]
[337500719,1725719458111,-500.0,0.00048219,120]
[337500720,1725719458120,-500.0,0.00048219,120]
[337500721,1725719458130,-500.0,0.00048219,120]
[337500722,1725719458140,-500.0,0.00048219,120]
[337500723,1725719458150,-500.0,0.00048219,120]
[337500724,1725719458159,-693.61,0.00048219,120]
[337500725,1725719458169,-500.0,0.00048219,120]
[337500726,1725719458178,-500.0,0.00048219,120]
[337500727,1725719458187,-500.0,0.00048219,120]
[337500728,1725719458197,-500.0,0.00048219,120]
[337500729,1725719458207,-506.59277208,0.00048219,120]
[337500730,1725719458216,-500.0,0.00048219,120]
[337500731,1725719458227,-500.0,0.00048219,120]
[337500732,1725719458236,-500.0,0.00048219,120]
[337500733,1725719458246,-500.0,0.00048219,120]
[337500734,1725719458255,-500.0,0.00048219,120]
[337500735,1725719458265,-500.0,0.00048219,120]
[337500736,1725719458275,-287.3791999,0.00048219,120]
[337500737,1725719458285,-500.0,0.00048219,120]
[337500738,1725719458294,-500.0,0.00048219,120]
[337500739,1725719458304,-500.0,0.00048219,120]
[337500740,1725719458313,-500.0,0.00048219,120]
[337500741,1725719458323,-1376.72,0.00048219,120]
[337500742,1725719458332,-258.86265487,0.00048219,30]
[337500743,1725719458343,-500.0,0.00048219,120]
[337500744,1725719458353,-500.0,0.00048219,120]
[337500745,1725719458363,-500.0,0.00048219,120]
[337500746,1725719458372,-500.0,0.00048219,120]
[337500747,1725719458382,-946.38,0.00048219,120]
[337500748,1725719458391,-500.0,0.00048219,120]
[337500749,1725719458401,-221.02556621,0.00048384,60]
[337500750,1725719458411,-152.0,0.00048475,60]
[337500751,1725719458420,-500.0,0.00048493,120]
[337500752,1725719458430,-500.0,0.00048493,120]
[337500753,1725719458439,-563.6,0.00048493,120]
[337500754,1725719458451,-404.45203026,0.00048493,120]
[337500755,1725719458461,-500.0,0.00048493,120]
[337500756,1725719458471,-500.0,0.00048493,120]
[337500757,1725719458480,-500.0,0.00048493,120]
[337500758,1725719458490,-500.0,0.00048493,120]
[337500759,1725719458501,-415.77371941,0.00048493,120]
[337500760,1725719458513,-530.74,0.00048493,120]
[337500761,1725719458523,-500.0,0.00048493,120]
[337500762,1725719458535,-500.0,0.00048493,120]
[337500763,1725719458544,-500.0,0.00048493,120]
[337500764,1725719458556,-599.860078,0.00048493,120]
[337500765,1725719458567,-500.0,0.00048493,7]
[337500766,1725719458576,-1157.96,0.00048493,120]
[337500767,1725719458586,-500.0,0.00048493,120]
[337500768,1725719458598,-500.0,0.00048493,120]
[337500769,1725719458608,-500.0,0.00048493,120]
[337500770,1725719458618,-3691.13,0.00048493,120]
[337500771,1725719458627,-500.0,0.00048493,120]
[337500772,1725719458638,-500.0,0.00048493,120]
[337500773,1725719458651,-500.0,0.00048493,120]
[337500774,1725719458661,-500.0,0.00048493,120]
[337500775,1725719458671,-500.0,0.00048493,120]
[337500776,1725719458681,-500.0,0.00048493,120]
[337500777,1725719458692,-500.0,0.00048493,2]
[337500778,1725719458702,-4327.5,0.00048493,120]
[337500779,1725719458714,-17544.47,0.00048493,120]
[337500780,1725719458726,-1303.57,0.00048493,120]
[337500781,1725719458737,-500.0,0.00048493,120]
[337500782,1725719458747,-500.0,0.00048493,120]
[337500783,1725719458759,-500.0,0.00048493,120]
[337500784,1725719458769,-500.0,0.00048493,120]
[337500785,1725719458779,-500.0,0.00048493,120]
[337500786,1725719458788,-500.0,0.00048493,120]
[337500787,1725719458798,-693.61,0.00048493,120]
[337500788,1725719458809,-500.0,0.00048493,120]
[337500789,1725719458818,-500.0,0.00048493,120]
[337500790,1725719458828,-500.0,0.00048493,120]
[337500791,1725719458838,-500.0,0.00048493,120]
[337500792,1725719458850,-500.0,0.00048493,120]
[337500793,1725719458860,-500.0,0.00048493,120]
[337500794,1725719458870,-500.0,0.00048493,120]
[337500795,1725719458880,-500.0,0.00048493,120]
[337500796,1725719458891,-500.0,0.00048493,120]
[337500797,1725719458902,-500.0,0.00048493,120]
[337500798,1725719458912,-500.0,0.00048493,120]
[337500799,1725719458923,-500.0,0.00048493,120]
[337500800,1725719458933,-500.0,0.00048493,120]
[337500801,1725719458944,-500.0,0.00048493,120]
[337500802,1725719458955,-1376.72,0.00048493,120]
[337500803,1725719458964,-500.0,0.00048493,120]
[337500804,1725719458974,-500.0,0.00048493,120]
[337500805,1725719458984,-500.0,0.00048493,120]
[337500806,1725719458994,-500.0,0.00048493,120]
[337500807,1725719459004,-946.38,0.00048493,120]
[337500808,1725719459014,-500.0,0.00048493,120]
[337500809,1725719459024,-221.02556621,0.00048575,60]
[337500810,1725719459034,-500.0,0.0004863,51]
[337500811,1725719459043,-500.0,0.00048767,120]
[337500812,1725719459052,-500.0,0.00048767,120]
[337500813,1725719459062,-563.6,0.00048767,120]
[337500814,1725719459072,-500.0,0.00048767,120]
[337500815,1725719459082,-500.0,0.00048767,120]
[337500816,1725719459091,-500.0,0.00048767,120]
[337500817,1725719459102,-500.0,0.00048767,120]
[337500818,1725719459111,-530.74,0.00048767,120]
[337500819,1725719459122,-500.0,0.00048767,120]
[337500820,1725719459132,-500.0,0.00048767,120]
[337500821,1725719459142,-500.0,0.00048767,120]
[337500822,1725719459152,-500.0,0.00048767,7]
[337500823,1725719459162,-1157.96,0.00048767,120]
[337500824,1725719459172,-500.0,0.00048767,120]
[337500825,1725719459182,-359.72851449,0.00048767,120]
[337500826,1725719459193,-252.99076965,0.00048767,120]
[337500827,1725719459205,-3691.13,0.00048767,120]
[337500828,1725719459216,-600.5046973,0.00048767,120]
[337500829,1725719459225,-500.0,0.00048767,120]
[337500830,1725719459235,-500.0,0.00048767,120]
[337500831,1725719459245,-500.0,0.00048767,120]
[337500832,1725719459254,-500.0,0.00048767,120]
[337500833,1725719459264,-500.0,0.00048767,120]
[337500834,1725719459273,-500.0,0.00048767,2]
[337500835,1725719459283,-4327.5,0.00048767,120]
[337500836,1725719459293,-17544.47,0.00048767,120]
[337500837,1725719459303,-1303.57,0.00048767,120]
[337500838,1725719459315,-500.0,0.00048767,120]
[337500839,1725719459417,-500.0,0.00048767,120]